bitfinex/quotes_BTCUSD_20230404
["timestamp","ask_amount","ask_price","bid_price","bid_amount"]
[1680623878147,0.005,28025.0,28024.0,0.91065534]
[1680623878355,0.006,28025.0,28024.0,0.93365534]
[1680623879696,0.006,28025.0,28024.0,0.84823002]
[1680623880402,0.006,28025.0,28024.0,0.73290356]
[1680623881067,0.005,28025.0,28024.0,0.70990356]
[1680623881288,0.006,28025.0,28024.0,0.73290356]
[1680623882036,0.006,28025.0,28024.0,0.58290356]
[1680623882247,0.005,28025.0,28024.0,0.63590356]
[1680623883086,0.006,28025.0,28024.0,0.66290356]
[1680623883337,0.005,28025.0,28024.0,0.8168202]
[1680623883756,0.005,28025.0,28024.0,0.63590356]
[1680623883971,0.006,28025.0,28024.0,0.69466356]
[1680623884196,0.005,28025.0,28024.0,0.67166356]
[1680623884413,0.006,28025.0,28024.0,0.69866356]
[1680623884667,0.005,28025.0,28024.0,0.67166356]
[1680623884889,0.006,28025.0,28024.0,0.69466356]
[1680623886602,0.006,28025.0,28024.0,0.85902635]
[1680623890111,0.006,28025.0,28024.0,0.93008888]
[1680623890792,0.006,28025.0,28024.0,1.23008888]
[1680623891709,0.00590929,28025.0,28024.0,1.08014888]
[1680623891931,0.00590929,28025.0,28024.0,1.08008888]
[1680623893686,0.00590929,28025.0,28024.0,1.19632275]
[1680623893909,0.00590929,28025.0,28024.0,1.2881121]
[1680623894544,0.00590929,28025.0,28024.0,1.28563993]
[1680623894809,0.00590929,28025.0,28024.0,1.40187459]
[1680623895529,0.00590929,28025.0,28024.0,1.28563993]
[1680623895971,0.00590929,28025.0,28024.0,1.40188211]
[1680623898411,0.00590929,28025.0,28024.0,1.31645679]
[1680623898849,0.00590929,28025.0,28024.0,1.40188211]
[1680623900149,0.35465813,28025.0,28024.0,0.35128218]
[1680623900274,0.35516813,28025.0,28024.0,0.35128218]
[1680623900480,0.00641929,28025.0,28024.0,0.23504]
[1680623900684,0.00590929,28025.0,28024.0,0.23504]
[1680623901921,0.00590929,28025.0,28024.0,0.35124313]
[1680623902781,0.00590929,28025.0,28024.0,0.42345063]
[1680623903000,0.01090929,28025.0,28024.0,0.43714963]
[1680623903212,0.01090929,28025.0,28024.0,0.42345063]
[1680623903625,0.01090929,28025.0,28024.0,0.36551613]
[1680623905724,0.01090929,28025.0,28024.0,0.37986613]
[1680623905955,0.01090929,28025.0,28024.0,0.45094145]
[1680623906627,0.01090929,28025.0,28024.0,0.46547745]
[1680623907070,0.01090929,28025.0,28024.0,0.45094145]
[1680623907274,0.01090929,28025.0,28024.0,1.01583714]
[1680623907692,0.01090929,28025.0,28024.0,1.14406066]
[1680623907893,0.01090929,28025.0,28024.0,1.43463534]
[1680623910288,0.01090929,28025.0,28024.0,1.35833534]
[1680623910919,0.01090929,28025.0,28024.0,1.52870573]
[1680623911781,0.01090929,28025.0,28024.0,1.40048221]
[1680623912208,0.01090929,28025.0,28024.0,1.92194519]
[1680623912417,0.01090929,28025.0,28024.0,1.99814519]
[1680623912629,0.01090929,28025.0,28024.0,1.61481182]
[1680623912828,0.01090929,28025.0,28024.0,1.64435136]
[1680623913053,0.0025,28031.0,28026.0,0.03576]
[1680623913292,0.0025,28031.0,28030.0,0.61643552]
[1680623913530,0.0025,28031.0,28030.0,1.6616285]
[1680623913763,0.0025,28031.0,28030.0,1.79443772]
[1680623913987,0.0025,28031.0,28030.0,1.59264443]
[1680623914229,0.0025,28031.0,28030.0,1.94661391]
[1680623914672,0.0025,28031.0,28030.0,1.97461391]
[1680623915411,0.0025,28031.0,28030.0,1.84644811]
[1680623915847,0.0025,28031.0,28030.0,1.85494811]
[1680623916262,0.0025,28031.0,28030.0,1.77854811]
[1680623916703,0.0025,28031.0,28030.0,1.64689109]
[1680623916921,0.0025,28031.0,28030.0,1.72323109]
[1680623917564,0.0025,28031.0,28030.0,1.63778722]
[1680623919048,0.0025,28031.0,28030.0,1.67428967]
[1680623922115,0.0025,28031.0,28030.0,1.67142734]
[1680623922326,0.0025,28031.0,28030.0,1.75687121]
[1680623923851,0.0025,28031.0,28030.0,1.67142734]
[1680623925251,0.0025,28031.0,28030.0,1.66846171]
[1680623925861,0.0025,28031.0,28030.0,1.75390558]
[1680623926288,0.0025,28031.0,28030.0,1.77168199]
[1680623926512,0.0025,28031.0,28030.0,1.84728199]
[1680623928632,0.0025,28031.0,28030.0,1.84481968]
[1680623930032,0.0025,28031.0,28030.0,2.08852725]
[1680623930849,0.0025,28031.0,28030.0,2.08862725]
[1680623931063,0.0025,28031.0,28030.0,2.14638881]
[1680623931284,0.0025,28031.0,28030.0,2.09808881]
[1680623931500,0.0025,28031.0,28030.0,2.04582301]
[1680623931711,0.0025,28031.0,28030.0,2.08858152]
[1680623931928,0.0025,28031.0,28030.0,2.08107973]
[1680623932143,0.0025,28031.0,28030.0,1.6665207]
[1680623933019,0.0025,28031.0,28030.0,1.6476314]
[1680623933437,0.0025,28031.0,28030.0,1.6839514]
[1680623933647,0.0025,28031.0,28030.0,1.6559514]
[1680623933868,0.0025,28031.0,28030.0,1.6839514]
[1680623934116,0.0025,28031.0,28030.0,1.6559514]
[1680623934340,0.0025,28031.0,28030.0,1.6839514]
[1680623934550,0.0025,28031.0,28030.0,1.65335881]
[1680623934978,0.0025,28031.0,28030.0,1.68135881]
[1680623936543,0.0025,28031.0,28030.0,1.59611751]
[1680623937155,0.0025,28031.0,28030.0,1.59362333]
[1680623938199,0.0025,28031.0,28030.0,1.67886463]
[1680623938405,0.0025,28031.0,28030.0,1.59362333]
[1680623938742,0.0025,28031.0,28030.0,1.56562333]
[1680623938957,0.0025,28031.0,28030.0,1.59362333]
[1680623939808,0.0025,28031.0,28030.0,1.67886463]
[1680623940016,0.0025,28031.0,28030.0,1.59362333]
[1680623940891,0.0025,28031.0,28030.0,1.70961395]
[1680623941520,0.0025,28031.0,28030.0,1.68161395]
[1680623941734,0.0025,28031.0,28030.0,1.70961395]
[1680623942383,0.0025,28031.0,28030.0,1.59362333]
[1680623942814,0.0025,28031.0,28030.0,1.70962208]
[1680623943459,0.37959599,28031.0,28030.0,1.37967901]
[1680623943684,0.38010599,28031.0,28030.0,0.90195026]
[1680623943909,0.00301,28031.0,28030.0,0.90195026]
[1680623944127,0.0025,28031.0,28030.0,0.90195026]
[1680623944351,0.0025,28031.0,28030.0,0.92995026]
[1680623945216,0.0025,28031.0,28030.0,1.07764992]
[1680623946107,0.0025,28031.0,28030.0,1.45364992]
[1680623946535,0.0025,28031.0,28030.0,1.45354459]
[1680623946751,0.0025,28031.0,28030.0,1.56949668]
[1680623946992,0.0025,28031.0,28030.0,1.56943668]
[1680623949657,0.0025,28031.0,28030.0,1.56865982]
[1680623954785,0.0025,28031.0,28030.0,1.65390112]
[1680623955927,0.0025,28031.0,28030.0,1.78176056]
[1680623956823,0.0025,28031.0,28030.0,1.69651926]
[1680623957761,0.0025,28031.0,28030.0,1.73913444]
[1680623958426,0.0025,28031.0,28030.0,1.59149478]
[1680623959112,0.3429485,28031.0,28030.0,1.15958752]
[1680623959341,0.3434585,28031.0,28030.0,1.24504864]
[1680623959569,0.3434585,28031.0,28030.0,1.15958752]
[1680623959849,0.3434585,28031.0,28030.0,0.73950847]
[1680623960516,0.4283585,28031.0,28030.0,0.73950847]
[1680623960961,0.4283585,28031.0,28030.0,0.58332211]
[1680623961243,0.4283585,28031.0,28030.0,0.61132211]
[1680623961465,0.4283585,28031.0,28030.0,0.58332211]
[1680623961698,0.4283585,28031.0,28030.0,0.57421141]
[1680623962847,0.4283585,28031.0,28030.0,0.58321141]
[1680623963495,0.4283585,28031.0,28030.0,0.59793341]
[1680623963754,0.4283585,28031.0,28030.0,0.58321141]
[1680623964660,0.4283585,28031.0,28030.0,0.69565]
[1680623964887,0.4283585,28031.0,28030.0,0.58321141]
[1680623965547,0.08791,28031.0,28030.0,0.58321141]
[1680623965798,0.0874,28031.0,28030.0,0.58321141]
[1680623967196,0.08782,28031.0,28030.0,0.58321141]
[1680623967428,0.08791,28031.0,28030.0,0.58321141]
[1680623967680,0.08791,28031.0,28030.0,0.28321141]
[1680623968564,0.08791,28031.0,28030.0,0.29788141]
[1680623968818,0.08791,28031.0,28030.0,0.28321141]
[1680623969047,0.08791,28031.0,28030.0,0.29694341]
[1680623969489,0.08791,28031.0,28030.0,0.27421141]
[1680623969709,0.08791,28031.0,28030.0,0.28321141]
[1680623970153,0.08791,28031.0,28030.0,0.29743141]
[1680623970351,0.08791,28031.0,28030.0,0.28321141]
[1680623971690,0.08749,28031.0,28030.0,0.28321141]
[1680623971916,0.08791,28031.0,28030.0,0.28321141]
[1680623972833,0.08791,28031.0,28030.0,0.39949368]
[1680623973061,0.08791,28031.0,28030.0,0.28321141]
[1680623973282,0.08784092,28031.0,28030.0,0.28321141]
[1680623973504,0.00243092,28031.0,28030.0,0.28321141]
[1680623973951,0.00243092,28031.0,28030.0,0.19775]
[1680623975075,0.00243092,28031.0,28030.0,0.39949032]
[1680623975983,0.18850737,28031.0,28030.0,0.39949032]
[1680623976205,0.18850737,28031.0,28030.0,0.39961032]
[1680623976481,0.18850737,28031.0,28030.0,0.31414891]
[1680623976705,0.5316014,28031.0,28030.0,0.29987891]
[1680623976933,0.5316014,28031.0,28030.0,0.19787]
[1680623977156,0.5316014,28031.0,28030.0,0.19775]
[1680623977378,0.5316014,28031.0,28030.0,0.18348]
[1680623977607,0.40224137,28031.0,28030.0,0.0123]
[1680623977841,0.86213736,28031.0,28030.0,0.0123]
[1680623978063,0.86213736,28031.0,28030.0,0.009]
[1680623978512,0.95478011,28031.0,28030.0,0.009]
[1680623979000,1.400516,28031.0,28027.0,0.17118]
[1680623979224,0.0849,28028.0,28027.0,0.17118]
[1680623979448,0.13064,28028.0,28027.0,0.17118]
[1680623979887,0.47657705,28028.0,28027.0,0.17118]
[1680623980117,0.47708705,28028.0,28027.0,0.17118]
[1680623980604,0.47708705,28028.0,28027.0,0.001]
[1680623980828,0.47708705,28028.0,28026.0,0.08546141]
[1680623981057,0.130664,28027.0,28026.0,0.08546141]
[1680623981289,0.0849,28027.0,28026.0,0.08546141]
[1680623981772,0.0849,28027.0,28025.0,0.21376777]
[1680623981997,0.0879,28027.0,28026.0,0.08546141]
[1680623982665,0.0879,28027.0,28025.0,0.21376777]
[1680623982911,0.5448975,28027.0,28025.0,0.21364777]
[1680623983127,0.5448975,28027.0,28026.0,0.08546141]
[1680623983344,0.5418975,28027.0,28026.0,0.08546141]
[1680623983566,0.5418975,28027.0,28026.0,0.09926141]
[1680623984135,0.0879,28027.0,28026.0,0.0138]
[1680623984348,0.0879,28027.0,28026.0,0.09926141]
[1680623984555,0.0879,28027.0,28026.0,0.0138]
[1680623985418,0.0879,28027.0,28026.0,0.01369122]
[1680623986097,0.0849,28027.0,28026.0,0.01369122]
[1680623986312,0.0879,28027.0,28026.0,0.01469122]
[1680623986546,0.0849,28027.0,28026.0,0.02796322]
[1680623986768,0.0849,28027.0,28026.0,0.04194122]
[1680623986769,0.0879,28027.0,28026.0,0.04194122]
[1680623987036,0.0879,28027.0,28026.0,0.28460463]
[1680623987257,0.0879,28027.0,28026.0,0.28472463]
[1680623987485,0.47776644,28027.0,28026.0,0.27051263]
[1680623987722,0.47776644,28027.0,28026.0,0.01687122]
[1680623987944,0.47776644,28027.0,28026.0,0.01669122]
[1680623988178,0.47776644,28027.0,28026.0,0.01369122]
[1680623988623,0.53405408,28027.0,28026.0,0.01369122]
[1680623989083,0.53405408,28027.0,28026.0,0.01669122]
[1680623989308,0.53405408,28027.0,28026.0,0.01369122]
[1680623989526,0.53705408,28027.0,28026.0,0.01469122]
[1680623989746,0.48076644,28027.0,28026.0,0.01469122]
[1680623990867,0.68461891,28027.0,28026.0,0.01469122]
[1680623991106,0.68461891,28027.0,28026.0,0.001]
[1680623991336,1.04920447,28027.0,28026.0,0.001]
[1680623991558,0.68461891,28027.0,28026.0,0.001]
[1680623991848,1.20438429,28027.0,28026.0,0.001]
[1680623992944,1.09052474,28027.0,28026.0,0.001]
[1680623993622,1.09103474,28027.0,28026.0,0.001]
[1680623995410,1.17593474,28027.0,28026.0,0.001]
[1680623995636,0.79993474,28027.0,28026.0,0.001]
[1680623998108,0.80251474,28027.0,28026.0,0.001]
[1680623998363,0.75602374,28027.0,28026.0,0.001]
[1680623999015,0.80293274,28027.0,28026.0,0.001]
[1680623999231,0.75602374,28027.0,28026.0,0.001]
[1680623999692,0.75602374,28027.0,28026.0,0.015272]
[1680623999693,0.49431583,28027.0,28026.0,0.015272]
[1680624000148,0.49431583,28027.0,28026.0,0.0196538]
[1680624000379,0.49431583,28027.0,28026.0,0.0053818]
[1680624000593,0.49431583,28027.0,28026.0,0.001]
[1680624001248,0.38165361,28026.0,28024.0,0.01319012]
[1680624001473,0.46645361,28026.0,28024.0,0.01319012]
[1680624002393,0.0764,28025.0,28024.0,0.04173612]
[1680624002851,0.0764,28025.0,28024.0,0.59166747]
[1680624003074,0.0764,28025.0,28024.0,0.47285882]
[1680624003293,0.0764,28025.0,28024.0,0.43019436]
[1680624003508,0.003,28027.0,28024.0,0.14248167]
[1680624003732,0.003,28027.0,28024.0,0.12708367]
[1680624003956,0.003,28027.0,28024.0,0.09853767]
[1680624004172,0.47491578,28029.0,28024.0,0.09853767]
[1680624004419,0.11823158,28028.0,28024.0,0.13107721]
[1680624004628,0.11823158,28028.0,28024.0,0.09853767]
[1680624004843,0.11823158,28028.0,28024.0,0.10153767]
[1680624005259,0.11823158,28028.0,28024.0,0.09853767]
[1680624005469,0.11823158,28028.0,28024.0,0.10153767]
[1680624005886,0.17687156,28028.0,28024.0,0.10153767]
[1680624006113,0.17687156,28027.0,28024.0,0.10153767]
[1680624006764,0.17687156,28027.0,28024.0,0.09853767]
[1680624007489,0.17687156,28027.0,28023.0,0.29937201]
[1680624007490,0.0764,28025.0,28023.0,0.27098055]
[1680624007707,0.0352,28025.0,28023.0,0.25670755]
[1680624007931,0.0352,28025.0,28024.0,0.0205]
[1680624008585,0.0352,28025.0,28024.0,0.06244936]
[1680624009054,0.0352,28025.0,28024.0,0.07672236]
[1680624009279,0.0352,28025.0,28024.0,0.034773]
[1680624009726,0.0392,28025.0,28024.0,0.034773]
[1680624009967,0.0352,28025.0,28024.0,0.034773]
[1680624010182,0.0392,28025.0,28024.0,0.0205]
[1680624010398,0.46202252,28026.0,28024.0,0.034773]
[1680624010629,0.004,28025.0,28024.0,0.034773]
[1680624010823,0.46202252,28026.0,28024.0,0.034773]
[1680624011093,0.004,28025.0,28024.0,0.034773]
[1680624011308,0.004,28025.0,28024.0,0.19301758]
[1680624011525,0.0762,28026.0,28024.0,0.15106832]
[1680624011958,0.0762,28026.0,28024.0,0.034773]
[1680624012426,0.004,28025.0,28024.0,0.034773]
[1680624012644,0.0762,28026.0,28024.0,0.15106876]
[1680624012863,0.0802,28026.0,28024.0,0.15106876]
[1680624013085,0.0802,28026.0,28024.0,0.034773]
[1680624013799,0.0802,28026.0,28024.0,0.12012055]
[1680624014022,0.004,28026.0,28024.0,0.12012055]
[1680624014669,0.004,28026.0,28025.0,0.1164725]
[1680624014881,0.004,28026.0,28024.0,0.12012055]
[1680624015372,0.36784946,28026.0,28024.0,0.12012055]
[1680624015644,0.36835946,28026.0,28024.0,0.12012055]
[1680624016307,0.36835946,28026.0,28024.0,0.10584755]
[1680624017156,0.36835946,28026.0,28025.0,0.116476]
[1680624018065,0.36435946,28026.0,28024.0,0.10584755]
[1680624018301,0.36435946,28026.0,28025.0,0.001]
[1680624018302,0.36835946,28026.0,28025.0,0.001]
[1680624018722,0.00451,28026.0,28025.0,0.001]
[1680624018974,0.70973522,28026.0,28025.0,0.001]
[1680624019184,0.75991422,28026.0,28025.0,0.001]
[1680624019397,1.28483467,28026.0,28025.0,0.001]
[1680624019609,0.83625194,28026.0,28025.0,0.001]
[1680624020035,1.2918898,28026.0,28025.0,0.001]
[1680624020252,1.26853915,28026.0,28025.0,0.001]
[1680624020463,0.83676194,28026.0,28025.0,0.001]
[1680624020892,1.27975748,28026.0,28025.0,0.001]
[1680624021315,0.83676194,28026.0,28025.0,0.001]
[1680624021750,1.17337037,28026.0,28025.0,0.001]
[1680624022188,1.16937037,28026.0,28021.0,0.21335956]
[1680624022401,1.02154396,28026.0,28025.0,0.001]
[1680624022636,1.00106415,28026.0,28025.0,0.001]
[1680624022859,0.578608,28026.0,28021.0,0.08534755]
[1680624023080,0.0764,28024.0,28021.0,0.08534755]
[1680624024414,0.0794,28024.0,28021.0,0.21335956]
[1680624024631,0.0794,28024.0,28021.0,0.08534755]
[1680624024844,0.51305817,28024.0,28021.0,0.08534755]
[1680624025060,0.51356817,28024.0,28021.0,0.08534755]
[1680624025289,0.69088539,28024.0,28021.0,0.2999395]
[1680624025535,0.69088539,28024.0,28021.0,0.17192749]
[1680624026199,0.69088539,28024.0,28021.0,0.2999395]
[1680624026421,0.69088539,28024.0,28021.0,0.17192749]
[1680624026634,0.42737465,28023.0,28021.0,0.17192749]
[1680624026855,0.42788465,28023.0,28021.0,0.08534755]
[1680624030409,0.045111,28020.0,28019.0,0.09698377]
[1680624030618,0.045621,28020.0,28019.0,0.09698377]
[1680624030846,0.59140414,28021.0,28019.0,0.09698377]
[1680624031060,0.047296,28020.0,28019.0,0.09698377]
[1680624031278,0.50038552,28020.0,28019.0,0.09698377]
[1680624031497,0.45508952,28020.0,28019.0,0.09698377]
[1680624031723,0.50082152,28020.0,28019.0,0.09698377]
[1680624032375,0.49888484,28020.0,28019.0,0.09698377]
[1680624032595,0.45315284,28020.0,28019.0,0.09698377]
[1680624032811,0.49726984,28020.0,28019.0,0.09698377]
[1680624033062,0.45515284,28020.0,28019.0,0.09698377]
[1680624033305,0.49933284,28020.0,28019.0,0.09698377]
[1680624033493,0.45515284,28020.0,28019.0,0.09698377]
[1680624036802,0.63285214,28020.0,28019.0,0.09698377]
[1680624039260,0.67882714,28020.0,28019.0,0.09698377]
[1680624039488,0.67858814,28020.0,28019.0,0.09698377]
[1680624039974,0.63285214,28020.0,28019.0,0.09698377]
[1680624040204,0.67702914,28020.0,28019.0,0.09698377]
[1680624040451,0.75484014,28020.0,28019.0,0.09698377]
[1680624040730,0.75484014,28020.0,28017.0,0.08552755]
[1680624040731,0.96284785,28019.0,28017.0,0.00012]
[1680624041011,0.96284785,28019.0,28016.0,6.66e-05]
[1680624041012,0.30355938,28018.0,28016.0,6.66e-05]
[1680624041291,0.0764,28017.0,28016.0,6.66e-05]
[1680624041779,0.00151,28019.0,28017.0,0.011]
[1680624042006,0.43393857,28020.0,28016.0,6.66e-05]
[1680624042243,0.019,28017.0,28016.0,0.0020666]
[1680624042472,0.61662095,28020.0,28016.0,6.66e-05]
[1680624042720,0.062609,28019.0,28017.0,0.002]
[1680624042943,0.044295,28018.0,28016.0,6.66e-05]
[1680624043169,0.71588305,28020.0,28016.0,6.66e-05]
[1680624043170,0.015,28017.0,28016.0,0.0010666]
[1680624043393,0.015,28017.0,28016.0,6.66e-05]
[1680624043674,0.32969926,28017.0,28016.0,6.66e-05]
[1680624044329,0.36272019,28017.0,28016.0,6.66e-05]
[1680624045017,0.34469926,28017.0,28016.0,0.0010666]
[1680624046137,0.34898226,28017.0,28016.0,0.0010666]
[1680624046366,0.34469926,28017.0,28016.0,0.0010666]
[1680624046585,0.38752826,28017.0,28016.0,0.0010666]
[1680624046809,0.34440742,28016.0,28014.0,0.0169666]
[1680624048161,0.34640742,28016.0,28014.0,0.0169666]
[1680624051380,0.002,28016.0,28014.0,0.02175326]
[1680624051833,0.002,28016.0,28015.0,0.01395]
[1680624052932,0.4807872,28018.0,28014.0,0.0169666]
[1680624053155,0.009,28016.0,28015.0,0.001]
[1680624055756,0.3858831,28016.0,28015.0,0.001]
[1680624057565,0.4312561,28016.0,28015.0,0.001]
[1680624058042,0.56310401,28016.0,28015.0,0.001]
[1680624058689,0.5119391,28016.0,28015.0,0.001]
[1680624059998,0.68114796,28016.0,28014.0,0.0169666]
[1680624060216,0.64377496,28016.0,28015.0,0.001]
[1680624060413,0.68083996,28016.0,28014.0,0.0169666]
[1680624060652,0.04436,28015.0,28014.0,0.0169666]
[1680624060891,0.048643,28015.0,28014.0,0.0169666]
[1680624061335,0.047898,28015.0,28014.0,0.0169666]
[1680624061548,0.41134602,28015.0,28014.0,0.0169666]
[1680624061998,0.67818539,28015.0,28014.0,0.0179666]
[1680624064033,0.67818539,28015.0,28009.0,2.24979578]
[1680624064223,0.56331665,28014.0,28009.0,0.25664755]
[1680624064525,0.456683,28013.0,28008.0,0.19222]
[1680624064744,0.456683,28013.0,28008.0,0.0208]
[1680624064745,0.32074284,28012.0,28008.0,0.0208]
[1680624064957,0.32074284,28012.0,28008.0,0.10614755]
[1680624065170,0.17884603,28012.0,28008.0,0.10614755]
[1680624065419,0.17935603,28012.0,28008.0,0.10614755]
[1680624065640,0.18363903,28012.0,28008.0,0.0208]
[1680624065854,0.18312903,28012.0,28008.0,0.0208]
[1680624066082,0.27834316,28012.0,28008.0,0.0208]
[1680624066299,0.28262616,28012.0,28008.0,0.0208]
[1680624066507,0.28962616,28012.0,28008.0,0.0208]
[1680624066958,0.3737825,28011.0,28008.0,0.0208]
[1680624067183,0.55754999,28011.0,28008.0,0.0208]
[1680624067404,0.6691437,28011.0,28008.0,0.0208]
[1680624067616,0.044962,28010.0,28008.0,0.0208]
[1680624067844,0.6761437,28011.0,28008.0,0.0208]
[1680624068092,0.04647,28010.0,28008.0,0.0208]
[1680624068980,0.050754,28010.0,28008.0,0.0208]
[1680624069196,0.044166,28009.0,28008.0,0.0972]
[1680624069435,0.63141593,28009.0,28008.0,0.0972]
[1680624069676,0.63141593,28009.0,28008.0,0.0208]
[1680624069677,1.14296875,28009.0,28008.0,0.0208]
[1680624069888,0.69065378,28009.0,28008.0,0.0208]
[1680624070106,0.51155282,28009.0,28008.0,0.0972]
[1680624070319,0.51155282,28009.0,28008.0,0.0208]
[1680624070320,0.58396148,28009.0,28008.0,0.0208]
[1680624070624,0.63406548,28009.0,28008.0,0.0208]
[1680624070847,1.09623283,28009.0,28008.0,0.0208]
[1680624071077,1.08223283,28009.0,28008.0,0.0208]
[1680624071304,0.23967096,28009.0,28008.0,0.0208]
[1680624071744,0.63934286,28009.0,28008.0,0.0208]
[1680624071935,0.4462419,28009.0,28008.0,0.0208]
[1680624073068,0.4505259,28009.0,28008.0,0.0208]
[1680624073281,0.4645259,28009.0,28008.0,0.0208]
[1680624073495,0.4602419,28009.0,28008.0,0.0208]
[1680624073711,0.64362686,28009.0,28008.0,0.0208]
[1680624074526,0.62962686,28009.0,28008.0,0.0208]
[1680624074745,0.76939995,28009.0,28008.0,0.0208]
[1680624075166,0.75539995,28009.0,28008.0,0.0208]
[1680624075383,0.62962686,28009.0,28008.0,0.0208]
[1680624076311,0.65662686,28009.0,28008.0,0.0208]
[1680624076749,0.02751,28009.0,28008.0,0.0208]
[1680624077636,0.57337651,28009.0,28008.0,0.0208]
[1680624078524,0.02751,28009.0,28008.0,0.0208]
[1680624078749,0.02751,28009.0,28008.0,0.0361082]
[1680624078750,0.027,28009.0,28008.0,0.0361082]
[1680624079194,0.02751,28009.0,28008.0,0.0361082]
[1680624079447,0.027,28009.0,28008.0,0.0208]
[1680624081267,0.46321256,28009.0,28008.0,0.0208]
[1680624081499,0.50625356,28009.0,28008.0,0.0208]
[1680624081747,0.46372256,28009.0,28008.0,0.0208]
[1680624083132,0.51052322,28009.0,28008.0,0.0208]
[1680624083374,0.51480722,28009.0,28008.0,0.0208]
[1680624083826,1.11574918,28009.0,28008.0,0.0208]
[1680624084761,1.11517183,28009.0,28008.0,0.0208]
[1680624086126,1.11088783,28009.0,28008.0,0.0208]
[1680624087452,0.20603361,28009.0,28008.0,0.0208]
[1680624088640,0.02693265,28009.0,28008.0,0.0208]
[1680624089072,0.07232365,28009.0,28008.0,0.0208]
[1680624089754,0.02693265,28009.0,28008.0,0.0208]
[1680624089979,0.07236465,28009.0,28008.0,0.0208]
[1680624090200,0.02693265,28009.0,28008.0,0.0208]
[1680624091142,0.51769783,28009.0,28008.0,0.0208]
[1680624091363,0.51860283,28009.0,28008.0,0.0208]
[1680624091798,0.47362883,28009.0,28008.0,0.0208]
[1680624092021,0.02693265,28009.0,28008.0,0.0208]
[1680624092682,0.49512945,28009.0,28008.0,0.0208]
[1680624093125,0.44996045,28009.0,28008.0,0.0208]
[1680624093576,0.49363845,28009.0,28008.0,0.0208]
[1680624093795,0.49415645,28009.0,28008.0,0.0208]
[1680624094014,0.44996045,28009.0,28008.0,0.0208]
[1680624094474,0.49435645,28009.0,28008.0,0.0208]
[1680624094774,0.67345741,28009.0,28008.0,0.0208]
[1680624095369,0.67774141,28009.0,28008.0,0.0208]
[1680624096166,1.05374141,28009.0,28008.0,0.0208]
[1680624099169,0.63071361,28009.0,28008.0,0.0208]
[1680624099391,1.1167308,28009.0,28008.0,0.0208]
[1680624100541,1.01339815,28009.0,28008.0,0.0208]
[1680624100968,1.34090815,28009.0,28008.0,0.0208]
[1680624101217,1.45818936,28009.0,28008.0,0.0208]
[1680624101465,1.48518936,28009.0,28008.0,0.0208]
[1680624101897,1.45818936,28009.0,28008.0,0.0208]
[1680624102133,1.48518936,28009.0,28008.0,0.0208]
[1680624102381,1.33049217,28009.0,28008.0,0.0208]
[1680624102585,1.51498494,28009.0,28008.0,0.0208]
[1680624103276,1.48798494,28009.0,28008.0,0.0208]
[1680624103491,1.51498494,28009.0,28008.0,0.0208]
[1680624103745,1.48798494,28009.0,28008.0,0.0208]
[1680624103977,1.51498494,28009.0,28008.0,0.0208]
[1680624105107,1.15197217,28009.0,28008.0,0.0208]
[1680624105330,1.16047217,28009.0,28008.0,0.0208]
[1680624105551,1.50195131,28009.0,28008.0,0.0208]
[1680624107599,1.60418855,28009.0,28008.0,0.0208]
[1680624107814,1.16047217,28009.0,28008.0,0.0208]
[1680624108038,1.51641623,28009.0,28008.0,0.0208]
[1680624109057,1.48941623,28009.0,28008.0,0.0208]
[1680624109288,1.51641623,28009.0,28008.0,0.0208]
[1680624110487,1.52523124,28009.0,28008.0,0.0208]
[1680624111370,1.51673124,28009.0,28008.0,0.0208]
[1680624112013,1.48973124,28009.0,28008.0,0.0208]
[1680624112448,1.51673124,28009.0,28008.0,0.0208]
[1680624112666,1.48973124,28009.0,28008.0,0.0208]
[1680624112885,1.51673124,28009.0,28008.0,0.0208]
[1680624114190,1.37245003,28009.0,28008.0,0.0208]
[1680624114424,1.00769096,28009.0,28008.0,0.0208]
[1680624117259,1.36960403,28009.0,28008.0,0.0208]
[1680624120333,1.54330184,28009.0,28008.0,0.0208]
[1680624120621,1.08409096,28009.0,28008.0,0.0208]
[1680624120841,1.22320714,28009.0,28008.0,0.0208]
[1680624121061,1.65123556,28009.0,28008.0,0.0208]
[1680624121276,1.19620714,28009.0,28008.0,0.0208]
[1680624121489,1.22320714,28009.0,28008.0,0.0208]
[1680624121708,0.27746171,28008.0,28003.0,0.00018]
[1680624121946,0.376,28003.0,28000.0,2.00018]
[1680624122192,0.376,28003.0,28000.0,2.0]
[1680624122193,1.22521198,28003.0,28000.0,2.0]
[1680624122394,1.24747137,28003.0,28000.0,2.0]
[1680624123078,1.27447137,28003.0,28000.0,2.0]
[1680624123311,1.24747137,28003.0,28000.0,2.0]
[1680624123535,1.26532025,28003.0,28000.0,2.0]
[1680624123967,1.26532025,28003.0,28002.0,0.03930229]
[1680624124189,1.29232025,28003.0,28002.0,0.03930229]
[1680624124442,1.26532025,28003.0,28002.0,0.03930229]
[1680624124658,1.21592025,28003.0,28002.0,0.03930229]
[1680624124878,1.5645172,28003.0,28002.0,0.03930229]
[1680624125782,1.25090064,28003.0,28002.0,0.03930229]
[1680624126002,1.70035981,28003.0,28002.0,0.03930229]
[1680624126966,1.67401093,28003.0,28002.0,0.03930229]
[1680624127382,0.376,28001.0,28000.0,1.56687824]
[1680624127591,0.98961304,28001.0,28000.0,1.56687824]
[1680624128011,0.98961304,28001.0,28000.0,1.58542108]
[1680624128439,1.1363521,28001.0,28000.0,1.58542108]
[1680624129053,1.1448521,28001.0,28000.0,1.58542108]
[1680624129502,1.47558949,28001.0,28000.0,1.58542108]
[1680624130983,1.2212521,28001.0,28000.0,1.58542108]
[1680624131220,1.1942521,28001.0,28000.0,1.58542108]
[1680624131424,1.2212521,28001.0,28000.0,1.58542108]
[1680624131922,1.64495388,28001.0,28000.0,1.58542108]
[1680624132181,1.57919766,28001.0,28000.0,1.58542108]
[1680624132404,1.2212521,28001.0,28000.0,1.58542108]
[1680624133139,1.58881871,28001.0,28000.0,1.58542108]
[1680624133414,1.2212521,28001.0,28000.0,1.58542108]
[1680624133680,1.1942521,28001.0,28000.0,1.58542108]
[1680624133931,1.2212521,28001.0,28000.0,1.58542108]
[1680624134177,1.1942521,28001.0,28000.0,1.58542108]
[1680624134413,1.6399794,28001.0,28000.0,1.58542108]
[1680624134645,1.1942521,28001.0,28000.0,1.58542108]